fUST/lending_fUST_20250707
["ID","MTS","AMOUNT","RATE_DAILY","PERIOD"]
[370072892,1751874685079,-503.05,0.00018178,2]
[370072893,1751874685088,-460.0,0.00018178,2]
[370072894,1751874685097,-460.0,0.00018178,2]
[370072895,1751874685107,-460.0,0.00018178,2]
[370072896,1751874685117,-2875.21,0.00018178,2]
[370072897,1751874685125,-151.0,0.00018179,2]
[370072898,1751874685134,-151.0,0.00018179,2]
[370072899,1751874685144,-275.356749,0.00018179,2]
[370072900,1751874685153,-151.0,0.00018179,2]
[370072901,1751874685163,-733.470814,0.00018179,2]
[370072902,1751874685172,-733.470814,0.00018179,2]
[370072903,1751874685182,-307.19562925,0.0001818,2]
[370072904,1751874685191,-460.0,0.0001818,2]
[370072905,1751874685201,-460.0,0.0001818,2]
[370072906,1751874685213,-460.0,0.0001818,2]
[370072907,1751874685222,-460.0,0.0001818,2]
[370072908,1751874685231,-460.0,0.0001818,2]
[370072909,1751874685242,-460.0,0.0001818,2]
[370072910,1751874685251,-434.0789232,0.0001818,2]
[370072911,1751874685260,-460.0,0.0001818,2]
[370072912,1751874685269,-460.0,0.0001818,2]
[370072913,1751874685279,-460.0,0.0001818,2]
[370072914,1751874685288,-152.751388,0.0001818,2]
[370072915,1751874685297,-460.0,0.0001818,2]
[370072916,1751874685307,-460.0,0.0001818,2]
[370072917,1751874685317,-220.871132,0.0001818,2]
[370072918,1751874685326,-220.871132,0.0001818,2]
[370072919,1751874685335,-460.0,0.0001818,2]
[370072920,1751874685345,-460.0,0.0001818,2]
[370072921,1751874685353,-1143.07,0.0001818,2]
[370072922,1751874685362,-460.0,0.0001818,2]
[370072923,1751874685370,-460.0,0.0001818,2]
[370072924,1751874685379,-460.0,0.0001818,2]
[370072925,1751874685389,-460.0,0.0001818,2]
[370072926,1751874685398,-460.0,0.0001818,2]
[370072927,1751874685407,-460.0,0.0001818,2]
[370072928,1751874685417,-460.0,0.0001818,2]
[370072929,1751874685427,-151.0,0.0001818,2]
[370072930,1751874685436,-151.0,0.0001818,2]
[370072931,1751874685445,-460.0,0.0001818,2]
[370072932,1751874685455,-460.0,0.0001818,2]
[370072933,1751874685464,-460.0,0.0001818,2]
[370072934,1751874685473,-460.0,0.0001818,2]
[370072935,1751874685483,-460.0,0.0001818,2]
[370072936,1751874685493,-460.0,0.0001818,2]
[370072937,1751874685502,-460.0,0.0001818,2]
[370072938,1751874685512,-904.25,0.0001818,2]
[370072939,1751874685521,-460.0,0.0001818,2]
[370072940,1751874685531,-460.0,0.0001818,2]
[370072941,1751874685542,-460.0,0.0001818,2]
[370072942,1751874685551,-158.529141,0.0001818,2]
[370072943,1751874685560,-460.0,0.0001818,2]
[370072944,1751874685569,-460.0,0.0001818,2]
[370072945,1751874685579,-158.529141,0.0001818,2]
[370072946,1751874685589,-151.0,0.0001818,2]
[370072947,1751874685598,-151.0,0.0001818,2]
[370072948,1751874685608,-1008.607187,0.0001818,2]
[370072949,1751874685617,-1008.607187,0.0001818,2]
[370072950,1751874685627,-460.0,0.0001818,2]
[370072951,1751874685636,-460.0,0.0001818,2]
[370072952,1751874685645,-151.0,0.0001818,2]
[370072953,1751874685655,-460.0,0.0001818,2]
[370072954,1751874685664,-460.0,0.0001818,2]
[370072955,1751874685674,-361.372323,0.0001818,2]
[370072956,1751874685683,-361.372323,0.0001818,2]
[370072957,1751874685693,-460.0,0.0001818,2]
[370072958,1751874685703,-460.0,0.0001818,2]
[370072959,1751874685712,-151.0,0.0001818,2]
[370072960,1751874685722,-151.0,0.0001818,2]
[370072961,1751874685732,-460.0,0.00018181,2]
[370072962,1751874685741,-460.0,0.00018181,2]
[370072963,1751874685751,-504.70820454,0.00018181,2]
[370072964,1751874685761,-460.0,0.00018181,2]
[370072965,1751874685770,-460.0,0.00018181,2]
[370072966,1751874685779,-460.0,0.00018181,2]
[370072967,1751874685789,-471.71,0.00018181,2]
[370072968,1751874685799,-335.73017062,0.00018181,2]
[370072969,1751874685809,-460.0,0.00018181,2]
[370072970,1751874685818,-460.0,0.00018181,2]
[370072971,1751874685827,-460.0,0.00018181,2]
[370072972,1751874685836,-460.0,0.00018181,2]
[370072973,1751874685845,-460.0,0.00018181,2]
[370072974,1751874685854,-460.0,0.00018181,2]
[370072975,1751874685863,-460.0,0.00018181,2]
[370072976,1751874685873,-460.0,0.00018181,2]
[370072977,1751874685882,-460.0,0.00018181,2]
[370072978,1751874685891,-151.0,0.00018181,2]
[370072979,1751874685901,-160.4115,0.00018181,2]
[370072980,1751874685912,-160.4115,0.00018181,2]
[370072981,1751874685923,-262.761526,0.00018181,2]
[370072982,1751874685933,-262.761526,0.00018181,2]
[370072983,1751874685942,-400.0,0.00018213,2]
[370072984,1751874685951,-500.57033979,0.00018221,2]
[370072985,1751874685961,-1000.0,0.00018221,2]
[370072986,1751874685972,-502.04557851,0.00018221,2]
[370072987,1751874685983,-1000.93316458,0.00018221,2]
[370072988,1751874685993,-331.85895089,0.00018221,2]
[370072989,1751874686003,-587.23630282,0.00018221,2]
[370072990,1751874686015,-1000.0,0.00018221,2]
[370072991,1751874686025,-1000.0,0.00018221,2]
[370072992,1751874686036,-1066.63419506,0.00018221,2]
[370072993,1751874686049,-500.61465074,0.00018221,2]
[370072994,1751874686060,-575.53782964,0.00018221,2]
[370072995,1751874686070,-1000.0,0.00018221,2]
[370072996,1751874686079,-181.94596512,0.00018221,2]
[370072997,1751874686089,-500.0,0.00018221,2]
[370072998,1751874686100,-1000.0,0.00018221,2]
[370072999,1751874686110,-545.583479,0.00018221,2]
[370073000,1751874686121,-170.092497,0.00018221,2]
[370073001,1751874686130,-170.092497,0.00018221,2]
[370073002,1751874686140,-400.0,0.00018296,2]
[370073003,1751874686152,-420.0,0.00018356,2]
[370073004,1751874686162,-400.0,0.0001838,2]
[370073005,1751874686172,-603.21229355,0.0001838,2]
[370073006,1751874686181,-460.0,0.00018447,2]
[370073007,1751874686191,-460.0,0.00018447,2]
[370073008,1751874686202,-460.0,0.00018447,2]
[370073009,1751874686214,-460.0,0.00018447,2]
[370073010,1751874686223,-460.0,0.00018447,2]
[370073011,1751874686233,-460.0,0.00018447,2]
[370073012,1751874686242,-516.51,0.00018447,2]
[370073013,1751874686252,-502.13,0.00018447,2]
[370073014,1751874686261,-460.0,0.00018447,2]
[370073015,1751874686270,-460.0,0.00018447,2]
[370073016,1751874686280,-574.98,0.00018447,2]
[370073017,1751874686290,-460.0,0.00018447,2]
[370073018,1751874686300,-460.0,0.00018447,2]
[370073019,1751874686312,-5847.9,0.00018447,2]
[370073020,1751874686322,-460.0,0.00018447,2]
[370073021,1751874686333,-460.0,0.00018447,2]
[370073022,1751874686344,-460.0,0.00018448,2]
[370073023,1751874686354,-460.0,0.00018448,2]
[370073024,1751874686363,-460.0,0.00018448,2]
[370073025,1751874686374,-463.08728124,0.00018448,2]
[370073026,1751874686384,-595.81726519,0.00018448,2]
[370073027,1751874686393,-460.0,0.00018448,2]
[370073028,1751874686403,-460.0,0.00018448,2]
[370073029,1751874686412,-460.0,0.00018448,2]
[370073030,1751874686422,-460.0,0.00018448,2]
[370073031,1751874686431,-460.0,0.00018448,2]
[370073032,1751874686441,-460.0,0.00018448,2]
[370073033,1751874686450,-460.0,0.00018448,2]
[370073034,1751874686459,-460.0,0.00018448,2]
[370073035,1751874686469,-460.0,0.00018448,2]
[370073036,1751874686479,-460.0,0.00018448,2]
[370073037,1751874686488,-460.0,0.00018448,2]
[370073038,1751874686497,-460.0,0.00018448,2]
[370073039,1751874686507,-462.21,0.00018448,2]
[370073040,1751874686516,-460.0,0.00018448,2]
[370073041,1751874686525,-3915.6,0.00018448,2]
[370073042,1751874686535,-460.0,0.00018448,2]
[370073043,1751874686545,-598.2,0.00018448,2]
[370073044,1751874686554,-460.0,0.00018448,2]
[370073045,1751874686564,-478.77228892,0.00018448,2]
[370073046,1751874686573,-2220.21,0.00018448,2]
[370073047,1751874686583,-460.0,0.00018448,2]
[370073048,1751874686592,-460.0,0.00018448,2]
[370073049,1751874686602,-432.84448559,0.00018448,2]
[370073050,1751874686612,-596.4,0.00018448,2]
[370073051,1751874686622,-212.08297394,0.00018448,2]
[370073052,1751874686631,-791.73,0.00018448,2]
[370073053,1751874686764,-460.0,0.00018448,2]
[370073054,1751874686774,-460.0,0.00018448,2]
[370073055,1751874686784,-460.0,0.00018448,2]
[370073056,1751874686793,-460.0,0.00018448,2]
[370073057,1751874686803,-460.0,0.00018448,2]
[370073058,1751874686812,-150.06534671,0.00018448,2]
[370073059,1751874686821,-500.96,0.00018448,2]
[370073060,1751874686831,-460.0,0.00018448,2]
[370073061,1751874686840,-908.31,0.00018448,2]
[370073062,1751874686849,-460.0,0.00018448,2]
[370073063,1751874686858,-3498.14,0.00018448,2]
[370073064,1751874686867,-593.47151697,0.00018448,2]
[370073065,1751874686876,-460.0,0.00018448,2]
[370073066,1751874686886,-7001.38,0.00018448,2]
[370073067,1751874686896,-460.0,0.00018448,2]
[370073068,1751874686906,-460.0,0.00018448,2]
[370073069,1751874686915,-802.05,0.00018448,2]
[370073070,1751874686924,-460.0,0.00018448,2]
[370073071,1751874686934,-460.0,0.00018448,2]
[370073072,1751874686943,-460.0,0.00018448,2]
[370073073,1751874686952,-2963.68,0.00018448,2]
[370073074,1751874686961,-282.80694967,0.00018448,2]
[370073075,1751874686970,-460.0,0.00018448,2]
[370073076,1751874686979,-960.04,0.00018448,2]
[370073077,1751874686988,-157.621897,0.00018448,2]
[370073078,1751874686998,-515.59,0.00018448,2]
[370073079,1751874687007,-460.0,0.00018448,2]
[370073080,1751874687017,-460.0,0.00018448,2]
[370073081,1751874687026,-1138.73,0.00018448,2]
[370073082,1751874687035,-460.0,0.00018448,2]
[370073083,1751874687045,-460.0,0.00018448,2]
[370073084,1751874687054,-173.78674107,0.00018448,2]
[370073085,1751874687063,-472.32822401,0.00018449,2]
[370073086,1751874687072,-460.0,0.00018449,2]
[370073087,1751874687082,-460.0,0.00018449,2]
[370073088,1751874687091,-460.0,0.00018449,2]
[370073089,1751874687100,-460.0,0.00018449,2]
[370073090,1751874687109,-460.0,0.00018449,2]
[370073091,1751874687119,-460.0,0.00018449,2]
[370073092,1751874687128,-460.0,0.00018449,2]
[370073093,1751874687138,-460.0,0.00018449,2]
[370073094,1751874687147,-460.0,0.00018449,2]
[370073095,1751874687156,-460.0,0.00018449,2]
[370073096,1751874687166,-460.0,0.00018449,2]
[370073097,1751874687176,-460.0,0.00018449,2]
[370073098,1751874687185,-460.0,0.00018449,2]
[370073099,1751874687194,-460.0,0.00018449,2]
[370073100,1751874687203,-460.0,0.00018449,2]
[370073101,1751874687217,-460.0,0.00018449,2]
[370073102,1751874687227,-460.0,0.00018449,2]
[370073103,1751874687236,-460.0,0.00018449,2]
[370073104,1751874687246,-460.0,0.00018449,2]
[370073105,1751874687258,-460.0,0.00018449,2]
[370073106,1751874687268,-460.0,0.00018449,2]
[370073107,1751874687277,-460.0,0.00018449,2]
[370073108,1751874687288,-460.0,0.00018449,2]
[370073109,1751874687297,-541.27890861,0.00018449,2]
[370073110,1751874687307,-460.0,0.00018449,2]
[370073111,1751874687316,-460.0,0.00018449,2]
[370073112,1751874687325,-460.0,0.00018449,2]
[370073113,1751874687334,-460.0,0.00018449,2]
[370073114,1751874687345,-460.0,0.00018449,2]
[370073115,1751874687354,-460.0,0.00018449,2]
[370073116,1751874687364,-460.0,0.00018449,2]
[370073117,1751874687374,-460.0,0.00018449,2]
[370073118,1751874687385,-460.0,0.00018449,2]
[370073119,1751874687395,-460.0,0.00018449,2]
[370073120,1751874687405,-460.0,0.00018449,2]
[370073121,1751874687417,-460.0,0.00018449,2]
[370073122,1751874687427,-460.0,0.00018449,2]
[370073123,1751874687437,-460.0,0.00018449,2]
[370073124,1751874687447,-460.0,0.00018449,2]
[370073125,1751874687457,-460.0,0.00018449,2]
[370073126,1751874687466,-460.0,0.00018449,2]
[370073127,1751874687476,-800.94,0.00018449,2]
[370073128,1751874687485,-460.0,0.00018449,2]
[370073129,1751874687495,-1010.27,0.00018449,2]
[370073130,1751874687504,-460.0,0.0001845,2]
[370073131,1751874687513,-460.0,0.0001845,2]
[370073132,1751874687522,-460.0,0.0001845,2]
[370073133,1751874687531,-460.0,0.0001845,2]
[370073134,1751874687543,-460.0,0.0001845,2]
[370073135,1751874687555,-460.0,0.0001845,2]
[370073136,1751874687564,-290.96721089,0.0001845,2]
[370073137,1751874687573,-460.0,0.0001845,2]
[370073138,1751874687583,-460.0,0.0001845,2]
[370073139,1751874687592,-545.09,0.0001845,2]
[370073140,1751874687601,-460.0,0.0001845,2]
[370073141,1751874687610,-460.0,0.0001845,2]
[370073142,1751874687619,-460.0,0.0001845,2]
[370073143,1751874687642,-460.0,0.0001845,2]
[370073144,1751874687658,-460.0,0.0001845,2]
[370073145,1751874687680,-460.0,0.0001845,2]
[370073146,1751874687699,-460.0,0.0001845,2]
[370073147,1751874687718,-460.0,0.0001845,2]
[370073148,1751874687738,-595.03,0.0001845,2]
[370073149,1751874687754,-460.0,0.0001845,2]
[370073150,1751874687771,-460.0,0.0001845,2]
[370073151,1751874687792,-460.0,0.0001845,2]
[370073152,1751874687812,-460.0,0.0001845,2]
[370073153,1751874687825,-460.0,0.0001845,2]
[370073154,1751874687848,-853.89,0.0001845,2]
[370073155,1751874687863,-460.0,0.0001845,2]
[370073156,1751874687880,-653.05,0.0001845,2]
[370073157,1751874687895,-1467.27,0.0001845,2]
[370073158,1751874687911,-460.0,0.0001845,2]
[370073159,1751874687928,-460.0,0.0001845,2]
[370073160,1751874687943,-460.0,0.0001845,2]
[370073161,1751874687959,-460.0,0.0001845,2]
[370073162,1751874687975,-460.0,0.0001845,2]
[370073163,1751874687991,-530.18536492,0.0001845,2]
[370073164,1751874688008,-460.0,0.0001845,2]
[370073165,1751874688024,-460.0,0.0001845,2]
[370073166,1751874688040,-460.0,0.0001845,2]
[370073167,1751874688056,-460.0,0.0001845,2]
[370073168,1751874688072,-558.67,0.0001845,2]
[370073169,1751874688089,-1277.64,0.0001845,2]
[370073170,1751874688105,-460.0,0.0001845,2]
[370073171,1751874688121,-875.52,0.0001845,2]
[370073172,1751874688137,-460.0,0.0001845,2]
[370073173,1751874688152,-1859.47,0.0001845,2]
[370073174,1751874688168,-460.0,0.0001845,2]
[370073175,1751874688184,-460.0,0.0001845,2]
[370073176,1751874688199,-667.38,0.0001845,2]
[370073177,1751874688217,-460.0,0.0001845,2]
[370073178,1751874688232,-607.27637962,0.0001845,2]
[370073179,1751874688249,-462.72,0.0001845,2]
[370073180,1751874688264,-460.0,0.0001845,2]
[370073181,1751874688279,-151.0,0.0001845,2]
[370073182,1751874688294,-460.0,0.0001845,2]
[370073183,1751874688309,-321.777629,0.0001845,2]
[370073184,1751874688325,-321.777629,0.0001845,2]
[370073185,1751874688341,-460.0,0.0001845,2]
[370073186,1751874688357,-460.0,0.0001845,2]
[370073187,1751874688372,-460.0,0.00018451,2]
[370073188,1751874688386,-460.0,0.00018451,2]
[370073189,1751874688403,-460.0,0.00018451,2]
[370073190,1751874688418,-476.25,0.00018451,2]
[370073191,1751874688432,-460.0,0.00018451,2]
[370073192,1751874688447,-460.0,0.00018451,2]
[370073193,1751874688463,-460.0,0.00018451,2]
[370073194,1751874688478,-460.0,0.00018451,2]
[370073195,1751874688493,-514.3,0.00018451,2]
[370073196,1751874688509,-460.0,0.00018451,2]
[370073197,1751874688523,-460.0,0.00018451,2]
[370073198,1751874688540,-460.0,0.00018451,2]
[370073199,1751874688556,-487.81,0.00018451,2]
[370073200,1751874688571,-1189.7,0.00018451,2]
[370073201,1751874688587,-460.0,0.00018451,2]
[370073202,1751874688603,-151.0,0.00018451,2]
[370073203,1751874688618,-1405.47,0.00018451,2]
[370073204,1751874688632,-470.64,0.00018451,2]
[370073205,1751874688648,-460.0,0.00018451,2]
[370073206,1751874688662,-460.0,0.00018451,2]
[370073207,1751874688678,-1319.88,0.00018451,2]
[370073208,1751874688693,-151.0,0.00018451,2]
[370073209,1751874688708,-211.594033,0.00018451,2]
[370073210,1751874688725,-760.73,0.00018451,2]
[370073211,1751874688740,-159.25166,0.00018451,2]
[370073212,1751874688755,-460.0,0.00018451,2]
[370073213,1751874688771,-159.25166,0.00018451,2]
[370073214,1751874688792,-1793.32,0.00018451,2]
[370073215,1751874688808,-460.0,0.00018451,2]
[370073216,1751874688823,-460.0,0.00018451,2]
[370073217,1751874688838,-460.0,0.00018451,2]
[370073218,1751874688854,-801.02,0.00018451,2]
[370073219,1751874688870,-484.77,0.00018451,2]
[370073220,1751874688887,-460.0,0.00018451,2]
[370073221,1751874688902,-485.52,0.00018451,2]
[370073222,1751874688917,-9292.4,0.00018451,2]
[370073223,1751874688932,-752.99,0.00018451,2]
[370073224,1751874688949,-2399.68,0.00018451,2]
[370073225,1751874688964,-460.0,0.00018451,2]
[370073226,1751874688981,-447.145426,0.00018451,2]
[370073227,1751874688997,-1940.76,0.00018451,2]
[370073228,1751874689014,-447.145426,0.00018451,2]
[370073229,1751874689030,-460.0,0.00018451,2]
[370073230,1751874689228,-460.0,0.00018451,2]
[370073231,1751874689238,-1002.05,0.00018451,2]
[370073232,1751874689248,-1775.53,0.00018451,2]
[370073233,1751874689258,-1952.44731812,0.00018452,2]
[370073234,1751874689267,-833.33,0.00018452,2]
[370073235,1751874689277,-460.0,0.00018452,2]
[370073236,1751874689287,-460.0,0.00018452,2]
[370073237,1751874689297,-460.0,0.00018452,2]
[370073238,1751874689308,-460.0,0.00018452,2]
[370073239,1751874689317,-477.24128075,0.00018452,2]
[370073240,1751874689326,-460.0,0.00018452,2]
[370073241,1751874689335,-479.16,0.00018452,2]
[370073242,1751874689345,-460.0,0.00018452,2]
[370073243,1751874689354,-151.0,0.00018452,2]
[370073244,1751874689363,-151.0,0.00018452,2]
[370073245,1751874689372,-189.261253,0.00018452,2]
[370073246,1751874689381,-189.261253,0.00018452,2]
[370073247,1751874689390,-151.0,0.00018452,2]
[370073248,1751874689400,-453.528498,0.00018452,2]
[370073249,1751874689409,-460.0,0.00018452,2]
[370073250,1751874689419,-460.0,0.00018452,2]
[370073251,1751874689428,-460.0,0.00018452,2]
[370073252,1751874689437,-460.0,0.00018452,2]
[370073253,1751874689446,-460.0,0.00018452,2]
[370073254,1751874689456,-789.93,0.00018452,2]
[370073255,1751874689465,-460.0,0.00018452,2]
[370073256,1751874689473,-460.0,0.00018452,2]
[370073257,1751874689481,-460.0,0.00018452,2]
[370073258,1751874689490,-460.0,0.00018452,2]
[370073259,1751874689499,-460.0,0.00018452,2]
[370073260,1751874689508,-460.0,0.00018452,2]
[370073261,1751874689518,-460.0,0.00018452,2]
[370073262,1751874689527,-408.6507377,0.00018452,2]
[370073263,1751874689536,-460.0,0.00018452,2]
[370073264,1751874689547,-460.0,0.00018452,2]
[370073265,1751874689557,-460.0,0.00018452,2]
[370073266,1751874689566,-460.0,0.00018452,2]
[370073267,1751874689576,-460.0,0.00018452,2]
[370073268,1751874689585,-290.55024436,0.00018452,2]
[370073269,1751874689594,-460.0,0.00018452,2]
[370073270,1751874689604,-460.0,0.00018452,2]
[370073271,1751874689614,-257.440728,0.00018452,2]
[370073272,1751874689624,-257.440728,0.00018452,2]
[370073273,1751874689633,-460.0,0.00018452,2]
[370073274,1751874689643,-520.72,0.00018452,2]
[370073275,1751874689652,-460.0,0.00018452,2]
[370073276,1751874689662,-460.0,0.00018452,2]
[370073277,1751874689671,-460.0,0.00018452,2]
[370073278,1751874689681,-460.0,0.00018452,2]
[370073279,1751874689690,-460.0,0.00018452,2]
[370073280,1751874689700,-460.0,0.00018452,2]
[370073281,1751874689709,-460.0,0.00018452,2]
[370073282,1751874689718,-460.0,0.00018452,2]
[370073283,1751874689728,-460.0,0.00018452,2]
[370073284,1751874689737,-460.0,0.00018452,2]
[370073285,1751874689746,-151.0,0.00018452,2]
[370073286,1751874689755,-460.0,0.00018452,2]
[370073287,1751874689765,-460.0,0.00018452,2]
[370073288,1751874689774,-460.0,0.00018452,2]
[370073289,1751874689783,-460.0,0.00018452,2]
[370073290,1751874689793,-1358.8,0.00018452,2]
[370073291,1751874689802,-460.0,0.00018452,2]
[370073292,1751874689811,-460.0,0.00018452,2]
[370073293,1751874689821,-460.0,0.00018452,2]
[370073294,1751874689830,-280.37305312,0.00018452,2]
[370073295,1751874689839,-460.0,0.00018452,2]
[370073296,1751874689849,-460.0,0.00018452,2]
[370073297,1751874689858,-151.0,0.00018452,2]
[370073298,1751874689870,-639.905489,0.00018452,2]
[370073299,1751874689881,-460.0,0.00018452,2]
[370073300,1751874689890,-639.905489,0.00018452,2]
[370073301,1751874689900,-460.0,0.00018452,2]
[370073302,1751874689910,-474.49,0.00018452,2]
[370073303,1751874689920,-460.0,0.00018452,2]
[370073304,1751874689931,-460.0,0.00018452,2]
[370073305,1751874689943,-460.0,0.00018452,2]
[370073306,1751874689953,-1067.63,0.00018452,2]
[370073307,1751874689963,-484.4,0.00018452,2]
[370073308,1751874689973,-636.05,0.00018452,2]
[370073309,1751874689982,-423.32100946,0.00018452,2]
[370073310,1751874689992,-460.0,0.00018452,2]
[370073311,1751874690003,-460.0,0.00018452,2]
[370073312,1751874690014,-3446.996744,0.00018452,2]
[370073313,1751874690024,-460.0,0.00018452,2]
[370073314,1751874690033,-3446.996744,0.00018452,2]
[370073315,1751874690043,-460.0,0.00018452,2]
[370073316,1751874690053,-460.0,0.00018452,2]
[370073317,1751874690063,-460.0,0.00018452,2]
[370073318,1751874690073,-460.0,0.00018452,2]
[370073319,1751874690086,-460.0,0.00018452,2]
[370073320,1751874690095,-460.0,0.00018452,2]
[370073321,1751874690105,-460.0,0.00018452,2]
[370073322,1751874690116,-460.0,0.00018452,2]
[370073323,1751874690126,-460.0,0.00018452,2]
[370073324,1751874690137,-460.0,0.00018452,2]
[370073325,1751874690149,-460.0,0.00018452,2]
[370073326,1751874690159,-460.0,0.00018452,2]
[370073327,1751874690169,-460.0,0.00018452,2]
[370073328,1751874690179,-460.0,0.00018452,2]
[370073329,1751874690190,-460.19069236,0.00018452,2]
[370073330,1751874690202,-460.0,0.00018452,2]
[370073331,1751874690215,-460.0,0.00018452,2]
[370073332,1751874690225,-460.0,0.00018452,2]
[370073333,1751874690234,-460.0,0.00018452,2]
[370073334,1751874690244,-460.0,0.00018452,2]
[370073335,1751874690253,-460.0,0.00018452,2]
[370073336,1751874690263,-500.0,0.00018452,2]
[370073337,1751874690272,-460.0,0.00018452,2]
[370073338,1751874690282,-460.0,0.00018452,2]
[370073339,1751874690291,-460.0,0.00018452,2]
[370073340,1751874690301,-460.0,0.00018452,2]
[370073341,1751874690311,-460.0,0.00018452,2]
[370073342,1751874690320,-460.0,0.00018452,2]
[370073343,1751874690329,-460.0,0.00018452,2]
[370073344,1751874690339,-460.0,0.00018452,2]
[370073345,1751874690349,-440.070746,0.00018452,2]
[370073346,1751874690359,-440.070746,0.00018452,2]
[370073347,1751874690368,-460.0,0.00018452,2]
[370073348,1751874690377,-460.0,0.00018452,2]
[370073349,1751874690387,-500.0,0.00018452,2]
[370073350,1751874690397,-1217.52,0.00018452,2]
[370073351,1751874690407,-308.62738373,0.00018452,2]
[370073352,1751874690416,-460.0,0.00018452,2]
[370073353,1751874690426,-598.99,0.00018452,2]
[370073354,1751874690436,-460.0,0.00018452,2]
[370073355,1751874690446,-460.0,0.00018452,2]
[370073356,1751874690455,-460.0,0.00018452,2]
[370073357,1751874690464,-460.0,0.00018452,2]
[370073358,1751874690473,-460.0,0.00018452,2]
[370073359,1751874690482,-614.451764,0.00018452,2]
[370073360,1751874690491,-614.451764,0.00018452,2]
[370073361,1751874690500,-460.0,0.00018452,2]
[370073362,1751874690510,-460.0,0.00018452,2]
[370073363,1751874690519,-460.0,0.00018452,2]
[370073364,1751874690528,-460.0,0.00018452,2]
[370073365,1751874690539,-460.0,0.00018452,2]
[370073366,1751874690548,-460.44,0.00018452,2]
[370073367,1751874690558,-460.0,0.00018452,2]
[370073368,1751874690568,-460.0,0.00018452,2]
[370073369,1751874690578,-460.0,0.00018452,2]
[370073370,1751874690588,-500.0,0.00018452,2]
[370073371,1751874690598,-460.0,0.00018452,2]
[370073372,1751874690608,-151.0,0.00018452,2]
[370073373,1751874690618,-460.0,0.00018452,2]
[370073374,1751874690628,-460.0,0.00018452,2]
[370073375,1751874690638,-460.0,0.00018452,2]
[370073376,1751874690648,-460.0,0.00018452,2]
[370073377,1751874690657,-460.0,0.00018452,2]
[370073378,1751874690666,-460.0,0.00018452,2]
[370073379,1751874690676,-151.0,0.00018452,2]
[370073380,1751874690686,-819.948891,0.00018452,2]
[370073381,1751874690696,-819.948891,0.00018452,2]
[370073382,1751874690705,-568.83,0.00018452,2]
[370073383,1751874690716,-460.0,0.00018452,2]
[370073384,1751874690726,-460.0,0.00018452,2]
[370073385,1751874690735,-460.0,0.00018452,2]
[370073386,1751874690745,-460.0,0.00018452,2]
[370073387,1751874690755,-460.0,0.00018452,2]
[370073388,1751874690765,-1142.62,0.00018452,2]
[370073389,1751874690776,-460.0,0.00018452,2]
[370073390,1751874690787,-3875.46,0.00018452,2]
[370073391,1751874690797,-460.0,0.00018452,2]